bitfinex/quotes_SOLUSD_20251103
["timestamp","ask_amount","ask_price","bid_price","bid_amount"]
[1762151386754,2.9341699,176.43,176.38,0.66]
[1762151386951,3.78648533,176.42,176.38,0.66]
[1762151387137,0.70849628,176.43,176.38,0.66]
[1762151387459,3.78628536,176.42,176.38,2.88567362]
[1762151387759,12.01450131,176.44,176.38,2.88567362]
[1762151388059,3.78678256,176.43,176.39,0.66]
[1762151388266,2.22567362,176.43,176.39,0.66]
[1762151392150,10.49728382,176.44,176.39,0.66]
[1762151392349,2.22567362,176.41,176.37,0.66]
[1762151392545,2.22567362,176.41,176.38,0.66]
[1762151395471,2.22567362,176.39,176.33,0.66]
[1762151395655,2.22567362,176.35,176.33,0.66]
[1762151396147,2.22567362,176.36,176.33,0.66]
[1762151398069,2.22567362,176.37,176.33,0.66]
[1762151398448,2.93433057,176.39,176.33,2.88567362]
[1762151398640,2.9342904,176.4,176.34,2.22567362]
[1762151398960,2.93425023,176.41,176.36,2.22567362]
[1762151399372,3.78068703,176.4,176.37,0.66]
[1762151399671,2.93425023,176.41,176.37,0.66]
[1762151400173,0.70857661,176.41,176.37,0.66]
[1762151400695,2.93425023,176.41,176.37,0.66]
[1762151400974,2.22567362,176.4,176.37,0.66]
[1762151401472,2.93425023,176.41,176.37,0.66]
[1762151401675,3.77937526,176.4,176.37,0.66]
[1762151401845,2.93425023,176.41,176.37,0.66]
[1762151402049,3.77935785,176.4,176.37,0.66]
[1762151402257,2.93425023,176.41,176.37,0.66]
[1762151402458,3.77913586,176.4,176.37,0.66]
[1762151402772,2.93425023,176.41,176.37,0.66]
[1762151402983,3.77956236,176.4,176.37,0.66]
[1762151403200,3.78216303,176.43,176.39,2.22567362]
[1762151403473,2.22567362,176.45,176.4,2.22567362]
[1762151403642,3.78226519,176.44,176.4,2.22567362]
[1762151403839,3.78226519,176.43,176.41,0.66]
[1762151404072,2.22567362,176.44,176.39,2.22567362]
[1762151404278,2.22567362,176.42,176.38,2.22567362]
[1762151404694,2.22567362,176.42,176.39,0.66]
[1762151405390,2.9341699,176.43,176.39,0.66]
[1762151405595,2.22567362,176.44,176.39,2.88567362]
[1762151405903,3.78381229,176.43,176.39,2.88567362]
[1762151406200,12.01450131,176.44,176.4,0.69]
[1762151406359,3.7843578,176.43,176.4,0.69]
[1762151406559,13.26512315,176.44,176.4,0.69]
[1762151406786,3.78477759,176.43,176.4,0.69]
[1762151406989,13.26512315,176.44,176.4,0.69]
[1762151407192,3.78472182,176.43,176.4,0.69]
[1762151407359,13.97357928,176.44,176.4,0.69]
[1762151407564,3.78442513,176.43,176.4,0.69]
[1762151407766,13.97357928,176.44,176.4,0.69]
[1762151407988,3.78442238,176.43,176.4,0.69]
[1762151408214,19.64132993,176.44,176.4,0.69]
[1762151408382,4.49283159,176.43,176.4,0.69]
[1762151408711,3.47629546,176.41,176.36,21.282]
[1762151409011,3.47629546,176.41,176.37,0.69]
[1762151409012,0.70861678,176.4,176.37,0.69]
[1762151409169,13.26512315,176.42,176.37,0.69]
[1762151409369,3.78388406,176.41,176.37,0.69]
[1762151409568,9.78882769,176.42,176.37,4.16629546]
[1762151409777,4.18479174,176.43,176.37,4.16629546]
[1762151409974,3.78417884,176.42,176.38,0.69]
[1762151410185,3.47629546,176.41,176.38,0.69]
[1762151412096,3.47629546,176.4,176.38,0.69]
[1762151412293,3.47629546,176.41,176.35,3.47629546]
[1762151412503,3.47629546,176.39,176.36,0.69]
[1762151413387,4.18495241,176.39,176.36,0.69]
[1762151413588,4.18499259,176.38,176.34,0.69]
[1762151413827,4.18499259,176.38,176.33,3.47629546]
[1762151413987,4.18499259,176.38,176.35,0.69]
[1762151414302,3.47629546,176.37,176.32,3.47629546]
[1762151414619,3.47629546,176.37,176.34,0.69]
[1762151414835,6.37837031,176.38,176.3,20.592]
[1762151415004,3.47629546,176.34,176.31,0.69]
[1762151415188,4.18507296,176.36,176.31,0.69]
[1762151415388,4.18507296,176.36,176.31,4.16629546]
[1762151415615,3.47629546,176.35,176.31,0.69]
[1762151415930,3.47629546,176.35,176.32,0.69]
[1762151416098,3.47629546,176.36,176.32,0.69]
[1762151416293,0.70881769,176.35,176.32,0.69]
[1762151416688,6.37941316,176.35,176.22,106.47629546]
[1762151416994,9.85570862,176.35,176.32,0.69]
[1762151417708,6.37941316,176.35,176.32,0.69]
[1762151418105,9.85570862,176.35,176.32,0.69]
[1762151418489,3.47629546,176.34,176.32,0.69]
[1762151419125,9.85570862,176.35,176.32,0.69]
[1762151419485,0.70873731,176.37,176.34,3.47629546]
[1762151419715,3.78481466,176.4,176.36,3.47629546]
[1762151420021,0.70857661,176.41,176.37,4.16629546]
[1762151420223,3.78439563,176.4,176.37,0.69]
[1762151420418,0.70857661,176.41,176.37,0.69]
[1762151420419,4.18487207,176.41,176.37,0.69]
[1762151420598,3.78390944,176.4,176.37,0.69]
[1762151420914,4.18487207,176.41,176.37,0.69]
[1762151421122,3.7838852,176.4,176.37,0.69]
[1762151421323,9.85358547,176.41,176.37,0.69]
[1762151421497,3.78483624,176.4,176.37,0.69]
[1762151421698,9.85358547,176.41,176.37,0.69]
[1762151421892,3.78447987,176.4,176.36,0.69]
[1762151422104,3.47629546,176.37,176.33,0.69]
[1762151422411,3.47629546,176.35,176.3,0.69]
[1762151422587,3.47629546,176.35,176.29,24.06829546]
[1762151422794,10.49760519,176.36,176.31,3.47629546]
[1762151423098,10.49760519,176.36,176.32,3.47629546]
[1762151423422,10.49760519,176.36,176.33,0.69]
[1762151423923,0.7087775,176.36,176.33,4.16629546]
[1762151424099,0.70869713,176.38,176.33,4.16629546]
[1762151424301,3.78598918,176.37,176.34,4.16629546]
[1762151424490,9.8546143,176.38,176.34,0.69]
[1762151424698,3.78703648,176.37,176.34,0.69]
[1762151424896,3.47629546,176.35,176.31,0.69]
[1762151425131,3.47629546,176.33,176.28,3.47629546]
[1762151425623,3.47629546,176.33,176.29,0.69]
[1762151425624,0.70893829,176.32,176.29,0.69]
[1762151426194,3.47629546,176.34,176.29,0.69]
[1762151426414,9.14591717,176.38,176.33,3.47629546]
[1762151426621,7.9724659,176.37,176.32,3.47629546]
[1762151426794,3.78743313,176.36,176.32,3.47629546]
[1762151426993,4.18503277,176.37,176.33,0.72]
[1762151427199,3.78742024,176.36,176.33,0.72]
[1762151427506,13.26512315,176.38,176.33,4.19629546]
[1762151427721,3.7880468,176.37,176.33,4.19629546]
[1762151427922,3.7880468,176.36,176.34,0.72]
[1762151428240,3.47629546,176.37,176.34,0.72]
[1762151428529,3.78570543,176.36,176.34,0.72]
[1762151428730,3.47629546,176.37,176.34,0.72]
[1762151428905,3.78574191,176.36,176.34,0.72]
[1762151429104,3.47629546,176.37,176.34,0.72]
[1762151429325,16.16721255,176.38,176.34,0.72]
[1762151429326,3.78568256,176.36,176.34,0.72]
[1762151429539,13.97382028,176.38,176.34,0.72]
[1762151429713,3.78596298,176.37,176.34,0.72]
[1762151429914,18.91128361,176.41,176.35,3.47629546]
[1762151429915,4.18491224,176.4,176.35,3.47629546]
[1762151430107,3.78643039,176.39,176.36,3.47629546]
[1762151430299,3.78643039,176.38,176.36,3.47629546]
[1762151430640,0.70857661,176.41,176.37,0.72]
[1762151430925,3.78660872,176.4,176.37,0.72]
[1762151431231,3.78660872,176.39,176.37,0.72]
[1762151431430,3.78660872,176.38,176.37,0.72]
[1762151432104,9.14527554,176.4,176.37,0.72]
[1762151432304,3.78724827,176.39,176.37,0.72]
[1762151432606,9.1449784,176.41,176.37,0.72]
[1762151432806,3.7867062,176.4,176.37,0.72]
[1762151433012,3.7867062,176.39,176.37,0.72]
[1762151433216,9.1449784,176.41,176.37,0.72]
[1762151433521,3.78694389,176.4,176.37,0.72]
[1762151433831,3.78694389,176.39,176.37,0.72]
[1762151434134,4.18491224,176.4,176.37,0.72]
[1762151434422,3.78718891,176.39,176.37,0.72]
[1762151434636,4.18491224,176.4,176.37,0.72]
[1762151434834,3.78721665,176.39,176.37,0.72]
[1762151435017,3.78721665,176.39,176.27,104.99999999]
[1762151435018,7.97204675,176.38,176.34,0.72]
[1762151435229,3.78705416,176.37,176.34,0.72]
[1762151435428,9.14587791,176.38,176.34,0.72]
[1762151435625,3.78705856,176.37,176.34,0.72]
[1762151435828,9.14587791,176.38,176.34,0.72]
[1762151436130,3.7871498,176.37,176.34,0.72]
[1762151436339,9.14587791,176.38,176.34,0.72]
[1762151436641,3.78708407,176.37,176.34,0.72]
[1762151436817,9.14587791,176.38,176.34,0.72]
[1762151437016,3.7874583,176.37,176.34,0.72]
[1762151437242,9.14587791,176.38,176.34,0.72]
[1762151437441,3.78785714,176.37,176.34,0.72]
[1762151437619,9.14587791,176.38,176.34,0.72]
[1762151437820,3.78803418,176.37,176.34,0.72]
[1762151438042,9.14587791,176.38,176.34,0.72]
[1762151438233,3.78816903,176.37,176.34,0.72]
[1762151438438,9.14587791,176.38,176.34,0.72]
[1762151438737,3.78879201,176.37,176.34,0.72]
[1762151438939,9.14587791,176.38,176.34,0.72]
[1762151439243,7.26494056,176.37,176.34,0.72]
[1762151439540,7.26494056,176.37,176.32,3.47629546]
[1762151439541,3.47629546,176.35,176.31,0.7]
[1762151439840,3.78883106,176.34,176.32,0.7]
[1762151440017,3.47629546,176.35,176.32,0.7]
[1762151440216,3.78918812,176.34,176.32,0.7]
[1762151440419,7.97435522,176.33,176.28,0.7]
[1762151440652,3.47629546,176.31,176.28,0.7]
[1762151441341,3.47629546,176.3,176.26,0.7]
[1762151441524,3.47629546,176.29,176.26,0.7]
[1762151441729,3.47629546,176.3,176.26,0.7]
[1762151443143,3.47629546,176.31,176.26,0.7]
[1762151443445,3.47629546,176.3,176.26,0.7]
[1762151443639,6.38044464,176.32,176.19,5.77566728]
[1762151443640,4.18535439,176.29,176.24,0.7]
[1762151443828,3.47629546,176.28,176.24,0.7]
[1762151444234,3.47629546,176.29,176.24,0.7]
[1762151444550,4.18535439,176.29,176.24,4.17629546]
[1762151444727,3.47629546,176.29,176.24,4.17629546]
[1762151444926,3.47629546,176.29,176.25,0.7]
[1762151445350,4.18535439,176.29,176.25,0.7]
[1762151445845,0.70905893,176.29,176.25,0.7]
[1762151446027,9.85750756,176.3,176.25,4.17629546]
[1762151446223,9.85750756,176.3,176.26,0.7]
[1762151446647,6.3812121,176.3,176.26,0.7]
[1762151447227,0.70901871,176.3,176.26,0.7]
[1762151447429,15.46005867,176.33,176.28,3.47629546]
[1762151447648,0.70889808,176.33,176.29,3.47629546]
[1762151448024,3.77980513,176.33,176.3,4.17629546]
[1762151448253,3.78045255,176.37,176.32,3.47629546]
[1762151448444,3.78045255,176.36,176.33,4.17629546]
[1762151448649,3.78045255,176.38,176.33,4.17629546]
[1762151448853,3.78045255,176.37,176.33,4.17629546]
[1762151449157,3.47629546,176.37,176.33,0.7]
[1762151449326,3.47629546,176.37,176.34,0.7]
[1762151450222,4.18507296,176.36,176.32,0.7]
[1762151451027,3.47629546,176.35,176.29,4.17629546]
[1762151451268,3.47629546,176.34,176.29,0.7]
[1762151451849,3.47629546,176.34,176.29,4.17629546]
[1762151452024,4.18519354,176.33,176.3,0.7]
[1762151453732,3.47629546,176.32,176.28,0.7]
[1762151454034,7.96871587,176.31,176.28,0.7]
[1762151454347,4.18527396,176.31,176.28,0.7]
[1762151454746,3.47629546,176.3,176.26,0.7]
[1762151455058,4.18531417,176.3,176.26,0.7]
[1762151455234,3.47629546,176.29,176.26,0.7]
[1762151456246,3.47629546,176.29,176.24,0.7]
[1762151456446,4.18535439,176.29,176.24,0.7]
[1762151456661,4.18535439,176.29,176.24,4.17629546]
[1762151457033,0.70905893,176.29,176.25,4.17629546]
[1762151457333,0.70905893,176.29,176.26,0.7]
[1762151457534,9.14817879,176.31,176.26,0.7]
[1762151457750,4.49297827,176.3,176.26,0.7]
[1762151457964,0.70901871,176.3,176.26,0.7]
[1762151459042,3.47629546,176.31,176.26,4.17629546]
[1762151459244,3.78450213,176.3,176.26,4.17629546]
[1762151459452,9.78882769,176.31,176.27,0.7]
[1762151459649,3.78431305,176.3,176.27,4.17629546]
[1762151459846,6.3805059,176.32,176.28,3.47629546]
[1762151459847,0.70893829,176.32,176.28,3.47629546]
[1762151460144,3.78528272,176.34,176.31,3.47629546]
[1762151460444,13.26512315,176.35,176.29,0.7]
[1762151460777,9.78882769,176.33,176.26,3.47629546]
[1762151460969,3.47629546,176.3,176.26,20.592]
[1762151461168,3.47629546,176.3,176.27,0.7]
[1762151461351,4.18535439,176.29,176.24,20.592]
[1762151461550,4.18535439,176.29,176.26,0.7]
[1762151461862,4.18535439,176.29,176.23,5.1786163]
[1762151461863,3.47629546,176.28,176.24,21.292]
[1762151462248,3.47629546,176.28,176.24,20.592]
[1762151462462,3.47629546,176.27,176.24,0.7]
[1762151462666,3.47629546,176.25,176.23,1.70232084]
[1762151463158,3.47629546,176.26,176.23,2.40232084]
[1762151463340,3.47629546,176.25,176.23,1.70232084]
[1762151464961,4.18547508,176.26,176.24,0.7]
[1762151465268,5.6730537,176.28,176.24,0.7]
[1762151465269,0.70901871,176.3,176.25,3.47629546]
[1762151465440,0.70893829,176.32,176.27,3.47629546]
[1762151465636,3.77878653,176.31,176.27,3.47629546]
[1762151465837,4.18531417,176.3,176.24,4.17629546]
[1762151466042,3.47629546,176.28,176.24,0.7]
[1762151466278,4.18543484,176.27,176.24,0.7]
[1762151466488,4.48824469,176.29,176.24,0.7]
[1762151466639,0.70905893,176.29,176.24,4.17629546]
[1762151467168,0.70905893,176.29,176.25,0.66]
[1762151467463,3.47629546,176.28,176.23,1.70232084]
[1762151467766,0.70909916,176.28,176.24,4.13629546]
[1762151468078,3.77942686,176.29,176.27,3.47629546]
[1762151468277,3.77947666,176.3,176.26,3.47629546]
[1762151468464,6.38214276,176.31,176.25,6.33316426]
[1762151468650,3.77950135,176.3,176.25,6.33316426]
[1762151468852,12.05426079,176.31,176.25,6.33316426]
[1762151468853,12.05426079,176.31,176.26,0.66]
[1762151469054,3.77949989,176.3,176.26,0.66]
[1762151469247,0.70893829,176.32,176.26,0.66]
[1762151469565,0.70893829,176.32,176.26,6.33316426]
[1762151469566,3.78019986,176.31,176.26,6.33316426]
[1762151469766,3.78019986,176.31,176.26,0.66]
[1762151469767,16.17097045,176.31,176.26,0.66]
[1762151470263,5.67316426,176.29,176.26,0.66]
[1762151470567,0.70905893,176.29,176.26,0.66]
[1762151470772,6.38222319,176.29,176.26,0.66]
[1762151471465,12.0547688,176.29,176.24,6.33316426]
[1762151471672,12.0547688,176.29,176.25,0.66]
[1762151472054,6.38222319,176.29,176.25,0.66]
[1762151472256,0.70905893,176.29,176.25,0.66]
[1762151472782,5.67316426,176.27,176.23,1.70232084]
[1762151472988,5.67316426,176.27,176.23,2.36232084]
[1762151473186,6.38230364,176.27,176.23,1.70232084]
[1762151473391,6.38230364,176.27,176.24,0.66]
[1762151474379,21.84324137,176.3,176.24,6.33316426]
[1762151474589,3.7788033,176.29,176.24,6.33316426]
[1762151474761,21.84324137,176.3,176.25,0.66]
[1762151474962,3.77880603,176.29,176.25,0.66]
[1762151475266,21.84324137,176.3,176.25,0.66]
[1762151475474,3.77918658,176.29,176.25,0.66]
[1762151475775,21.84324137,176.3,176.25,0.66]
[1762151475968,21.84324137,176.3,176.25,6.33316426]
[1762151475969,3.77918336,176.29,176.25,6.33316426]
[1762151476170,10.4978464,176.3,176.25,6.33316426]
[1762151476385,3.78000414,176.29,176.26,0.66]
[1762151476571,10.4978464,176.3,176.26,0.66]
[1762151476771,3.78000623,176.29,176.26,0.66]
[1762151476979,21.84319345,176.3,176.26,0.66]
[1762151477180,3.7787918,176.29,176.26,0.66]
[1762151477379,21.84319345,176.3,176.26,0.66]
[1762151477574,3.77851173,176.29,176.26,0.66]
[1762151477770,21.84319345,176.3,176.26,0.66]
[1762151477970,3.77826477,176.29,176.26,0.66]
[1762151478265,21.84319345,176.3,176.26,0.66]
[1762151478465,3.77937577,176.29,176.26,0.66]
[1762151478675,21.84319345,176.3,176.26,0.66]
[1762151478894,3.77937577,176.29,176.26,0.66]
[1762151479105,26.26516426,176.27,176.23,1.70232084]
[1762151479398,10.39785288,176.24,176.23,1.70232084]
[1762151479563,14.17722865,176.24,176.23,1.70232084]
[1762151479973,20.592,176.21,176.16,0.1]
[1762151480191,19.86491854,176.19,176.16,0.1]
[1762151480379,26.26516426,176.17,176.16,0.1]
[1762151480688,30.04454003,176.17,176.16,0.1]
[1762151482198,19.86830154,176.16,176.07,0.1]
[1762151482505,5.67316426,176.08,176.07,0.1]
[1762151482794,19.24136772,176.08,176.07,0.1]
[1762151484392,24.92060443,176.08,176.07,1e-08]
[1762151487887,19.24744017,176.08,176.07,1e-08]
[1762151488086,24.92060443,176.08,176.07,1e-08]
[1762151488296,13.56820346,176.08,176.07,0.72000001]
[1762151488498,21.85113324,176.08,176.07,1e-08]
[1762151488675,10.49873227,176.08,176.07,1e-08]
[1762151488876,16.17189653,176.08,176.07,1e-08]
[1762151489294,21.85113324,176.08,176.07,1e-08]
[1762151489675,25.58485726,176.08,176.07,1e-08]
[1762151490081,19.911693,176.08,176.07,1e-08]
[1762151490295,25.58485726,176.08,176.07,1e-08]
[1762151490783,19.90562055,176.08,176.07,1e-08]
[1762151490987,5.67316426,176.09,176.07,0.72000001]
[1762151491183,6.38298822,176.1,176.07,0.72000001]
[1762151491413,10.11320231,176.13,176.07,6.39316427]
[1762151491720,5.67316426,176.11,176.07,0.72000001]
[1762151491889,10.11332321,176.1,176.07,0.72000001]
[1762151492077,5.67316426,176.08,176.07,1e-08]
[1762151492791,11.35240097,176.08,176.07,1e-08]
[1762151493108,0.70982396,176.1,176.07,0.72000001]
[1762151493284,6.38298822,176.1,176.07,0.72000001]
[1762151493484,5.67316426,176.09,176.07,0.72000001]
[1762151494300,9.78882769,176.09,176.07,0.72000001]
[1762151494596,0.70982396,176.1,176.07,0.72000001]
[1762151494805,10.49480851,176.11,176.07,0.72000001]
[1762151495613,10.49480851,176.11,176.07,6.39316427]
[1762151495795,16.16797277,176.11,176.07,0.72000001]
[1762151495996,5.67316426,176.1,176.08,0.69]
[1762151496594,16.16797277,176.11,176.08,0.69]
[1762151496782,10.49480851,176.11,176.08,0.69]
[1762151496982,16.16797277,176.11,176.08,0.69]
[1762151497206,15.46199195,176.13,176.08,6.36316426]
[1762151497379,4.72468862,176.16,176.12,5.67316426]
[1762151497380,0.70958219,176.16,176.12,5.67316426]
[1762151497701,0.70958219,176.16,176.13,0.69]
[1762151497883,5.67316426,176.14,176.11,0.69]
[1762151498084,6.38286732,176.13,176.09,0.69]
[1762151498287,5.67316426,176.12,176.09,0.69]
[1762151498497,6.38294791,176.11,176.09,0.69]
[1762151499010,5.67316426,176.1,176.07,0.69000001]
[1762151499189,6.38294791,176.11,176.07,0.69000001]
[1762151500282,15.46199195,176.1,176.07,0.69000001]
[1762151500489,6.38302853,176.09,176.07,1e-08]
[1762151500687,6.38302853,176.09,176.08,0.69]
[1762151500923,0.70986427,176.09,176.08,0.69]
[1762151502820,12.06123837,176.11,176.08,0.69]
[1762151503112,3.72744189,176.1,176.08,0.69]
[1762151503327,12.06123837,176.11,176.08,0.69]
[1762151503491,3.72793539,176.1,176.08,0.69]
[1762151503693,12.06123837,176.11,176.08,0.69]
[1762151503892,3.72792705,176.1,176.08,0.69]
[1762151504095,12.06123837,176.11,176.08,0.69]
[1762151504311,0.70970306,176.13,176.08,6.36316426]
[1762151504616,6.38286732,176.13,176.09,0.69]
[1762151505103,5.67316426,176.1,176.07,0.69000001]
[1762151505311,5.67316426,176.09,176.07,0.69000001]
[1762151505682,6.38302853,176.09,176.07,0.69000001]
[1762151505886,5.67316426,176.09,176.07,0.69000001]
[1762151506106,5.67316426,176.1,176.07,0.69000001]
[1762151506406,0.70986427,176.09,176.07,0.69000001]
[1762151507008,12.06196957,176.09,176.07,0.69000001]
[1762151507307,12.06196957,176.09,176.07,1e-08]
[1762151507308,9.403119,176.08,176.07,1e-08]
[1762151508008,5.67316426,176.08,176.07,0.69000001]
[1762151508307,6.38847244,176.1,176.07,0.69000001]
[1762151508519,3.73094137,176.09,176.07,0.69000001]
[1762151508693,0.70982396,176.1,176.07,0.69000001]
[1762151509643,0.70974335,176.12,176.07,0.69000001]
[1762151509941,11.35078868,176.14,176.09,5.67316426]
[1762151509942,0.70970306,176.13,176.09,5.67316426]
[1762151510097,5.67316426,176.1,176.07,1e-08]
[1762151510299,9.78882769,176.08,176.07,1e-08]
[1762151510605,0.70986427,176.09,176.07,0.69000001]
[1762151510926,6.38880762,176.09,176.07,0.69000001]
[1762151511933,12.06197188,176.09,176.07,0.69000001]
[1762151512118,3.73439507,176.08,176.07,0.69000001]
[1762151513117,12.06197188,176.09,176.07,0.69000001]
[1762151513827,0.70986427,176.09,176.07,0.69000001]
[1762151513996,6.3884499,176.1,176.07,0.69000001]
[1762151514316,8.62192678,176.1,176.07,0.69000001]
[1762151515118,9.42070961,176.09,176.07,0.69000001]
[1762151515298,5.67902278,176.09,176.07,0.69000001]
[1762151516726,7.91249966,176.09,176.07,0.69000001]
[1762151517033,2.23347688,176.08,176.07,1e-08]
[1762151517201,5.97736942,176.08,176.07,1e-08]
[1762151517614,5.97736942,176.08,176.07,0.69000001]
[1762151518234,11.65660613,176.08,176.07,0.69000001]
[1762151519012,9.42312925,176.08,176.07,0.69000001]
[1762151519417,11.65660613,176.08,176.07,1e-08]
[1762151519620,16.38129475,176.08,176.07,1e-08]
[1762151520227,25.8546979,176.08,176.04,9.74935966]
[1762151520430,26.28398915,176.05,175.96,0.69]
[1762151520634,5.69198915,175.98,175.96,0.69]
[1762151520939,5.69198915,176.0,175.96,0.69]
[1762151521144,3.75259411,175.99,175.96,0.69]
[1762151521306,0.71026762,175.99,175.96,0.69]
[1762151521645,6.40221642,176.0,175.96,0.69]
[1762151521830,5.69198915,175.98,175.96,0.69]
[1762151522004,0.71034835,175.97,175.96,0.69]
[1762151522212,5.69198915,176.02,175.96,6.38198915]
[1762151522414,3.75965994,176.01,175.96,6.38198915]
[1762151522723,3.75965994,176.0,175.97,0.69]
[1762151523043,3.75965994,175.99,175.97,0.69]
[1762151523218,3.75965994,175.98,175.97,0.69]
[1762151523547,9.78882769,175.97,175.94,0.69]
[1762151523746,4.47004866,175.96,175.94,0.69]
[1762151523911,3.75965994,175.95,175.94,0.69]
[1762151524257,5.68375582,175.94,175.92,0.69]
[1762151524533,5.68375582,175.94,175.9,147.26]
[1762151524534,4.4701698,175.93,175.9,147.26]
[1762151524708,3.75965994,175.92,175.91,0.69]
[1762151525410,9.78882769,175.91,175.9,147.26]
[1762151525628,19.95106742,175.91,175.9,147.26]
[1762151526355,45.23459233,175.91,175.9,117.30758574]
[1762151526513,50.92946496,175.91,175.9,117.30758574]
[1762151526914,46.22779256,175.91,175.9,88.36820979]
[1762151527110,34.85107827,175.91,175.9,88.36820979]
[1762151527453,25.63579256,175.91,175.9,88.36820979]
[1762151528110,14.25907827,175.91,175.9,88.36820979]
[1762151528310,27.88383433,175.91,175.9,88.36820979]
[1762151530750,22.19910919,175.91,175.9,88.36820979]
[1762151530957,3.75965994,175.91,175.9,89.04820979]
[1762151531435,0.71050986,175.93,175.9,89.04820979]
[1762151531613,9.78882769,175.91,175.9,89.04820979]
[1762151531815,3.73944518,175.91,175.9,88.36820979]
[1762151532049,21.46830379,175.91,175.9,88.36820979]
[1762151532613,13.52827287,175.91,175.9,88.36820979]
[1762151532851,27.15302893,175.91,175.9,88.36820979]
[1762151533634,13.52827287,175.91,175.9,89.04820979]
[1762151533831,14.23886351,175.91,175.9,89.04820979]
[1762151534215,10.49941833,175.91,175.9,89.04820979]
[1762151534417,18.43944925,175.91,175.9,89.04820979]
[1762151534639,0.71059064,175.91,175.9,89.04820979]
[1762151534846,7.94003092,175.94,175.9,89.04820979]
[1762151535046,7.94003092,175.91,175.9,88.36820979]
[1762151535642,8.65062156,175.91,175.9,88.36820979]
[1762151536121,7.94003092,175.91,175.9,88.36820979]
[1762151536516,14.3353467,175.91,175.9,88.36820979]
[1762151536750,18.06667385,175.91,175.9,88.36820979]
[1762151537267,14.3353467,175.91,175.9,88.36820979]
[1762151537432,18.06300182,175.91,175.9,88.36820979]
[1762151538232,27.85182951,175.91,175.9,88.36820979]
[1762151538565,67.05,175.97,175.9,88.36820979]
[1762151538566,4.70131503,176.01,175.9,102.67328903]
[1762151538726,9.36031847,176.08,175.99,20.592]
[1762151538727,10.3805772,176.08,175.99,20.592]
[1762151538929,7.94003092,176.06,175.95,20.592]
[1762151539139,7.94003092,176.04,175.97,7.94003092]
[1762151539344,7.94003092,176.04,175.95,27.70115668]
[1762151539553,7.94003092,176.0,175.95,27.70115668]
[1762151539751,7.94003092,176.01,175.93,20.592]
[1762151540051,7.94003092,175.98,175.93,20.592]
[1762151540235,8.64524506,175.97,175.91,20.592]
[1762151540438,0.70521414,175.97,175.92,7.94003092]
[1762151540750,17.72885861,175.99,175.93,7.94003092]
[1762151540931,0.70521414,175.98,175.93,7.94003092]
[1762151541125,8.64524506,175.98,175.92,7.94003092]
[1762151541459,7.94003092,175.97,175.91,28.55203092]
[1762151541656,0.70521414,175.96,175.91,28.55203092]
[1762151542030,0.70521414,175.96,175.91,20.592]
[1762151542031,9.32524506,175.96,175.91,20.592]
[1762151542248,7.94003092,175.95,175.91,20.592]
[1762151542444,20.592,176.01,175.95,20.592]
[1762151542662,7.94003092,176.04,175.93,20.592]
[1762151542833,0.68,176.03,175.95,0.02]
[1762151543042,8.62003092,176.03,175.97,7.94003092]
[1762151543241,0.68,176.03,175.98,7.94003092]
[1762151543439,0.70521414,176.07,176.0,20.592]
[1762151543762,9.32524506,176.06,176.0,7.94003092]
[1762151544146,9.32524506,176.06,175.97,20.612]
[1762151544147,0.70521414,176.06,176.01,7.94003092]
[1762151544348,0.68,176.07,176.02,7.94003092]
[1762151544667,13.61897905,176.09,176.03,7.94003092]
[1762151544865,0.70521414,176.08,175.99,20.592]
[1762151545159,7.94003092,176.05,175.99,28.53203092]
[1762151545468,0.68,176.07,176.0,7.94003092]
[1762151545469,0.70521414,176.04,176.0,7.94003092]
[1762151545643,8.64524506,176.08,176.02,7.94003092]
[1762151546337,7.94003092,176.07,176.0,0.02]
[1762151546651,7.94003092,176.07,175.92,0.02]
[1762151546652,7.94003092,176.01,175.92,0.02]
[1762151546878,0.70521414,176.0,175.93,0.02]
[1762151547040,20.592,176.01,175.71,54.20348369]
[1762151547237,20.592,176.02,175.88,7.94003092]
[1762151547238,7.94003092,175.94,175.88,7.94003092]
[1762151547554,7.94003092,175.94,175.9,108.96020979]
[1762151547756,7.94003092,175.93,175.9,88.36820979]